lending/lending_fUSD_20240206
["ID","MTS","AMOUNT","RATE_DAILY","PERIOD"]
[313346296,1707192641733,-1500.0,0.0002284,2]
[313346298,1707192641743,-150.0,0.00022856,2]
[313346300,1707192641753,-150.0,0.00022864,2]
[313346301,1707192641762,-150.0,0.00022864,2]
[313346302,1707192641772,-150.0,0.00022872,2]
[313346313,1707192641933,-150.0,0.00022874,2]
[313346314,1707192641944,-150.0,0.00022878,2]
[313346315,1707192641953,-150.0,0.00022878,2]
[313346316,1707192641962,-150.0,0.00022882,2]
[313346317,1707192641971,-150.0,0.00022883,2]
[313346318,1707192641982,-150.0,0.00022889,2]
[313346319,1707192641991,-150.0,0.00022889,2]
[313346320,1707192642000,-1500.0,0.00022891,2]
[313346321,1707192642009,-150.0,0.00022892,2]
[313346322,1707192642018,-150.0,0.00022897,2]
[313346323,1707192642027,-478.55493689,0.00022898,2]
[313346324,1707192642041,-7630.56283327,0.00022898,2]
[313346325,1707192642051,-533.57391915,0.00022898,2]
[313346326,1707192642061,-150.0,0.00022899,2]
[313346327,1707192642071,-157.18669521,0.000229,2]
[313346328,1707192642080,-472.51678726,0.000229,2]
[313346329,1707192642096,-1430.18375976,0.000229,2]
[313346330,1707192642109,-1536.12040449,0.000229,2]
[313346331,1707192642121,-751.02933199,0.000229,2]
[313346332,1707192642143,-810.1497165,0.000229,2]
[313346333,1707192642152,-95.53299585,0.000229,2]
[313346334,1707192642165,-382.50649852,0.000229,2]
[313346335,1707192642174,-112.17955318,0.000229,2]
[313346336,1707192642186,-1819.59835751,0.000229,2]
[313346337,1707192642196,-573.08399,0.000229,2]
[313346338,1707192642205,-963.24643204,0.000229,2]
[313346339,1707192642214,-5852.87953774,0.000229,2]
[313346340,1707192642223,-150.0,0.00022901,2]
[313346341,1707192642233,-150.0,0.00022903,2]
[313346342,1707192642243,-150.0,0.00022921,2]
[313346343,1707192642254,-300.0,0.00022921,2]
[313346344,1707192642264,-150.0,0.00022922,2]
[313346345,1707192642274,-150.0,0.00022923,2]
[313346346,1707192642283,-150.0,0.00022924,2]
[313346347,1707192642293,-150.0,0.00022924,2]
[313346348,1707192642302,-150.0,0.00022924,2]
[313346349,1707192642311,-150.0,0.00022925,2]
[313346350,1707192642320,-150.0,0.00022926,2]
[313346351,1707192642332,-150.0,0.00022926,2]
[313346352,1707192642342,-150.0,0.00022929,2]
[313346353,1707192642350,-150.0,0.0002293,2]
[313346354,1707192642360,-150.0,0.0002296,2]
[313346355,1707192642370,-150.0,0.00022965,2]
[313346356,1707192642380,-159.28007043,0.00022966,2]
[313346357,1707192642390,-150.0,0.00022968,2]
[313346358,1707192642399,-386.3453184,0.00022985,2]
[313346359,1707192642409,-150.0,0.00022985,2]
[313346360,1707192642420,-1500.0,0.00022992,2]
[313346361,1707192642430,-274.67633998,0.00022995,2]
[313346362,1707192642439,-202.9908377,0.00022995,2]
[313346363,1707192642449,-4534.36965629,0.00022995,2]
[313346364,1707192642458,-188.00105498,0.00022995,2]
[313346365,1707192642468,-299.35838825,0.00022995,2]
[313346366,1707192642477,-150.0,0.00022995,2]
[313346367,1707192642485,-322.34163124,0.00022996,2]
[313346368,1707192642495,-289.15057459,0.00022996,2]
[313346369,1707192642504,-1218.55193781,0.00022997,2]
[313346370,1707192642519,-20984.0422857,0.00022997,2]
[313346371,1707192642529,-48881.79392499,0.00022997,2]
[313346395,1707192645066,-2006.30624441,0.00022997,2]
[313346397,1707192645078,-7936.18948535,0.00022997,2]
[313346406,1707192645431,-40302.52375907,0.00022997,2]
[313346408,1707192645441,-3309.97832316,0.00022997,2]
[313346410,1707192645451,-321272.3139454,0.00022998,2]
[313346487,1707192646156,-1288.17523618,0.00022998,2]
[313346505,1707192646316,-1433.49229833,0.00022998,2]
[313346531,1707192646720,-57342.2309195,0.00022998,2]
[313346532,1707192646729,-2000.0,0.00022998,2]
[313346533,1707192646738,-200.0,0.00022998,2]
[313346534,1707192646747,-200.0,0.00022998,2]
[313346535,1707192646757,-160.58806401,0.00022999,2]
[313346536,1707192646766,-576.04016056,0.00022999,2]
[313346537,1707192646774,-500.0,0.00022999,2]
[313346538,1707192646784,-500.0,0.00022999,2]
[313346539,1707192646793,-500.0,0.00022999,2]
[313346540,1707192646802,-500.0,0.00022999,2]
[313346541,1707192646811,-437.14485951,0.00022999,2]
[313346542,1707192646820,-500.0,0.00022999,2]
[313346543,1707192646935,-500.0,0.00022999,2]
[313346544,1707192646945,-500.0,0.00022999,2]
[313346545,1707192646954,-500.0,0.00022999,2]
[313346546,1707192646963,-166.31429552,0.00022999,2]
[313346547,1707192646972,-251.30333112,0.00022999,2]
[313346548,1707192646981,-500.0,0.00022999,2]
[313346549,1707192646990,-500.0,0.00022999,2]
[313346550,1707192647000,-399.37607769,0.00022999,2]
[313346551,1707192647009,-500.0,0.00022999,2]
[313346552,1707192647018,-442.13938012,0.00022999,2]
[313346553,1707192647027,-500.0,0.00022999,2]
[313346554,1707192647036,-500.0,0.00022999,2]
[313346555,1707192647045,-500.0,0.00022999,2]
[313346556,1707192647054,-500.0,0.00022999,2]
[313346557,1707192647063,-500.0,0.00022999,2]
[313346558,1707192647073,-360.73323815,0.00022999,2]
[313346559,1707192647088,-139.26676185,0.00022999,2]
[313346560,1707192647100,-116.62158982,0.00022999,2]
[313346561,1707192647116,-383.37841018,0.00022999,2]
[313346562,1707192647125,-500.0,0.00022999,2]
[313346563,1707192647134,-500.0,0.00022999,2]
[313346564,1707192647144,-538.77815725,0.00022999,2]
[313346565,1707192647154,-500.0,0.00022999,2]
[313346566,1707192647163,-500.0,0.00022999,2]
[313346567,1707192647172,-500.0,0.00022999,2]
[313346568,1707192647182,-500.0,0.00022999,2]
[313346569,1707192647191,-39.93385422,0.00022999,2]
[313346570,1707192647209,-460.06614578,0.00022999,2]
[313346571,1707192647220,-500.0,0.00022999,2]
[313346572,1707192647230,-500.0,0.00022999,2]
[313346573,1707192647240,-439.24672747,0.00022999,2]
[313346574,1707192647253,-60.75327253,0.00022999,2]
[313346575,1707192647263,-500.0,0.00022999,2]
[313346576,1707192647272,-111.67344958,0.00022999,2]
[313346577,1707192647283,-246.55086685,0.00022999,2]
[313346578,1707192647293,-172.30921691,0.00022999,2]
[313346579,1707192647303,-319.15459167,0.00022999,2]
[313346580,1707192647318,-14806.08956753,0.00022999,2]
[313346581,1707192729229,3233.68506553,0.00022999,7]
[313346582,1707192747886,353.35,0.00022,2]
[313346583,1707192802006,846.01050611,0.00022,4]
[313346584,1707192859255,151.24,0.0002002,2]
[313346585,1707192882425,155.25,0.00021931,2]
[313346586,1707192916606,186.23,0.00021927,2]
[313346587,1707192943847,154.44,0.00022091,2]
[313346588,1707193130981,200.0,0.00021922,2]
[313346589,1707193188474,170.29,0.00021884,2]
[313346590,1707193264145,1169.53,0.00022056,2]
[313346591,1707193277331,151.24,0.00019961,2]
[313346592,1707193319414,188.65332762,0.00022482,2]
[313346593,1707193375197,155.25,0.00021882,2]
[313346594,1707193413768,208.0,0.00021529,2]
[313346595,1707193557575,840.0,0.00021885,2]
[313346596,1707193660138,164.77,0.00021896,2]
[313346597,1707193711215,153.06,0.0002,2]
[313346621,1707193832339,-1350.28454767,0.000226,2]
[313346623,1707193832555,-321.90484521,0.000226,2]
[313346624,1707193832568,-562.4996314,0.000226,2]
[313346625,1707193832579,-4938.45488061,0.000226,2]
[313346626,1707193832589,-1500.0,0.00022689,2]
[313346627,1707193832598,-261.74050698,0.00022716,2]
[313346628,1707193832607,-261.74050686,0.00022726,2]
[313346629,1707193832616,-150.0,0.00022733,2]
[313346630,1707193832626,-150.0,0.00022735,2]
[313346631,1707193832637,-261.74050686,0.00022735,2]
[313346632,1707193832647,-261.74050686,0.00022745,2]
[313346633,1707193832657,-261.74050686,0.00022755,2]
[313346634,1707193832666,-261.74050686,0.00022764,2]
[313346635,1707193832675,-3032.0,0.0002277,2]
[313346636,1707193832684,-150.0,0.0002277,2]
[313346637,1707193832697,-261.74050686,0.00022774,2]
[313346638,1707193832706,-150.0,0.00022778,2]
[313346639,1707193832715,-150.0,0.00022781,2]
[313346640,1707193832724,-300.0,0.00022782,2]
[313346641,1707193832733,-261.74050686,0.00022784,2]
[313346642,1707193832742,-261.74050686,0.00022793,2]
[313346643,1707193832751,-1412.53639943,0.00022798,2]
[313346644,1707193832761,-261.74050686,0.00022803,2]
[313346645,1707193832770,-150.0,0.00022806,2]
[313346646,1707193832781,-150.0,0.00022812,2]
[313346647,1707193832791,-261.74050686,0.00022813,2]
[313346648,1707193832800,-261.74050686,0.00022823,2]
[313346649,1707193832810,-261.74050686,0.00022832,2]
[313346650,1707193832820,-150.0,0.00022833,2]
[313346651,1707193832831,-309.29610596,0.00022836,2]
[313346652,1707193832949,-300.0,0.00022839,2]
[313346653,1707193832959,-300.0,0.00022851,2]
[313346654,1707193832968,-150.0,0.00022855,2]
[313346655,1707193832979,-153.06,0.00022867,2]
[313346656,1707193832990,-150.0,0.00022889,2]
[313346657,1707193832999,-150.0,0.00022896,2]
[313346658,1707193833008,-967.78104716,0.00022897,2]
[313346659,1707193833018,-37888.44584456,0.00022897,2]
[313346670,1707193838422,-499.99,0.00022764,2]
[313346671,1707193838432,-1975.9218,0.00022797,2]
[313346672,1707193838442,-2860.03241933,0.00022897,2]
[313346673,1707193838455,-332.65978067,0.00022897,2]
[313346674,1707193838476,-12496.5938476,0.00022897,2]
[313346675,1707193838533,-2861.16401675,0.00022897,2]
[313346676,1707193838643,-1478.00002489,0.00022897,2]
[313346677,1707193838750,-118527.5369796,0.00022897,2]
[313346683,1707193840951,-469.30961175,0.00022897,2]
[313346684,1707193840963,-13483.68645895,0.00022897,2]
[313346685,1707193840974,-8292.89681295,0.00022897,2]
[313346686,1707193841052,-36202.7163257,0.00022897,2]
[313346687,1707193841063,-12461.24736445,0.00022897,2]
[313346688,1707193841075,-3386.88863555,0.00022897,2]
[313346689,1707193841085,-47949.1476743,0.00022898,2]
[313346690,1707193841161,-288.59341171,0.00022898,2]
[313346691,1707193841850,-321.1046262,0.00022898,2]
[313346703,1707193843403,-2008.77762569,0.00022898,2]
[313346704,1707193843416,-4234.51878844,0.00022898,2]
[313346705,1707193843620,-265.6000002,0.00022898,2]
[313346706,1707193846383,-424.06617346,0.00022898,2]
[313346707,1707193846393,-967.78104715,0.00022898,2]
[313346708,1707193846402,-1000.0,0.00022898,2]
[313346709,1707193846411,-583.8664,0.000229,2]
[313346710,1707193846421,-157.18669521,0.000229,2]
[313346711,1707193846430,-493.76626246,0.000229,2]
[313346712,1707193846492,-500.0,0.000229,2]
[313346713,1707193885179,151.0206,0.00023,3]
[313346714,1707193886593,151.0206,0.00023,3]
[313346715,1707193887404,151.0206,0.00023,3]
[313346716,1707193888229,151.0206,0.00023,3]
[313346717,1707193888960,396.46545669,0.00022999,10]
[313346718,1707193889015,151.0206,0.00023,3]
[313346719,1707193963650,169.27,0.00022487,2]
[313346720,1707194026382,328.0,0.00021974,2]
[313346721,1707194034087,779.86472346,0.00022487,2]
[313346722,1707194056038,774.541472,0.00022487,2]
[313346723,1707194058555,206.73222473,0.00022,2]
[313346724,1707194080042,774.541472,0.00022487,2]
[313346725,1707194098040,774.541472,0.00022487,2]
[313346726,1707194114033,774.541472,0.00022487,2]
[313346727,1707194132056,774.541472,0.00022487,2]
[313346728,1707194154212,774.541472,0.00022487,2]
[313346729,1707194170216,774.541472,0.00022487,2]
[313346730,1707194188216,774.541472,0.00022487,2]
[313346731,1707194208221,774.541472,0.00022487,2]
[313346732,1707194226216,774.541472,0.00022487,2]
[313346733,1707194242243,774.541472,0.00022487,2]
[313346734,1707194264883,153.06,0.00020023,2]
[313346735,1707194274410,774.541472,0.00022487,2]
[313346736,1707194294415,774.541472,0.00022487,2]
[313346737,1707194306211,228.22,0.00021936,2]
[313346738,1707194312410,774.541472,0.00022487,2]
[313346739,1707194334446,774.541472,0.00022487,2]
[313346740,1707194356438,774.541472,0.00022487,2]
[313346741,1707194366024,198.68,0.00022091,2]
[313346742,1707194369332,150.0,0.00023,3]
[313346743,1707194376430,774.541472,0.00022487,2]
[313346744,1707194384116,184.05,0.00017541,2]
[313346745,1707194391151,172.02,0.00021926,2]
[313346746,1707194394646,919.36925442,0.00022487,2]
[313346747,1707194416162,270.87975987,0.00022,2]
[313346748,1707194461030,737.6,0.00021884,2]
[313346749,1707194694154,159.65,0.00019966,2]
[313346750,1707194759715,1346.64,0.00021886,2]
[313346751,1707194777866,1661.25,0.00021886,2]
[313346752,1707194797005,163.08,0.0002205,2]
[313346753,1707194797214,163.08,0.00022433,2]
[313346754,1707194812098,-237.57736422,0.0002258,2]
[313346755,1707194912533,4914.03,0.00023,10]
[313346759,1707195031517,-474.01370317,0.00022579,2]
[313346761,1707195031573,-402.76377635,0.00022579,2]
[313346762,1707195031583,-876.77747952,0.00022579,2]
[313346763,1707195031592,-1762.42263578,0.0002258,2]
[313346764,1707195031601,-152.68196239,0.00022625,2]
[313346765,1707195031611,-152.68196233,0.0002265,2]
[313346766,1707195031619,-152.68196233,0.00022675,2]
[313346767,1707195031629,-76.46475382,0.000227,2]
[313346768,1707195031643,-76.21720851,0.000227,2]
[313346769,1707195031652,-150.0,0.00022725,2]
[313346770,1707195031662,-73.20647308,0.00022732,2]
[313346771,1707195031678,-76.79352692,0.00022732,2]
[313346772,1707195031687,-150.0,0.00022748,2]
[313346773,1707195031696,-150.0,0.00022782,2]
[313346774,1707195031706,-419.88,0.00022789,2]
[313346775,1707195031715,-728.38,0.00022796,2]
[313346776,1707195031725,-721.98,0.00022797,2]
[313346777,1707195031734,-1552.96647308,0.000228,2]
[313346778,1707195031746,-634.11642692,0.000228,2]
[313346779,1707195031756,-163.08,0.00022816,2]
[313346780,1707195031765,-150.0,0.00022856,2]
[313346781,1707195031774,-150.0,0.00022869,2]
[313346782,1707195031783,-150.0,0.00022897,2]
[313346783,1707195031792,-155.0,0.00022898,2]
[313346784,1707195031802,-237.57512915,0.00022899,2]
[313346785,1707195031812,-7433.35795598,0.000229,2]
[313346786,1707195031822,-5000.0,0.000229,2]
[313346787,1707195031832,-157.18669521,0.000229,2]
[313346788,1707195031844,-27675.96743469,0.000229,2]
[313346790,1707195031871,-347.06557633,0.000229,2]
[313346797,1707195031903,-954.01451178,0.000229,2]
[313346801,1707195037508,-152.68196233,0.00022725,2]
[313346802,1707195037518,-4312.56442444,0.000229,2]
[313346803,1707195037531,-635.96349285,0.000229,2]
[313346804,1707195037619,-152.68196233,0.0002275,2]
[313346805,1707195037629,-802.20044957,0.000229,2]
[313346806,1707195037644,-2260.99045463,0.000229,2]
[313346807,1707195037674,-926.63689892,0.000229,2]
[313346808,1707195037730,-3627.95124371,0.000229,2]
[313346809,1707195037786,-1015.1999988,0.000229,2]
[313346810,1707195037897,-1110.27551428,0.000229,2]
[313346811,1707195037907,-51654.04,0.000229,2]
[313346812,1707195037917,-705.0754344,0.000229,2]
[313346813,1707195037927,-422.93422788,0.000229,2]
[313346814,1707195037938,-508.49927955,0.000229,2]
[313346815,1707195037947,-1287.85194046,0.000229,2]
[313346817,1707195037956,-318.69299624,0.000229,2]
[313346818,1707195037965,-4044.52280792,0.000229,2]
[313346819,1707195037974,-382.05599334,0.000229,2]
[313346820,1707195037983,-150.0,0.00022905,2]
[313346821,1707195037992,-150.0,0.00022911,2]
[313346822,1707195038001,-150.0,0.00022929,2]
[313346824,1707195038010,-150.0,0.00022951,2]
[313346826,1707195038019,-167.42,0.00022962,2]
[313346828,1707195038029,-309.49899878,0.00022995,2]
[313346830,1707195038039,-472.80896673,0.00022996,2]
[313346832,1707195038048,-204.3080678,0.00022996,2]
[313346834,1707195038057,-295.17946876,0.00022996,2]
[313346836,1707195038067,-2117.44926124,0.00022996,2]
[313346838,1707195038081,-522.84651929,0.00022996,2]
[313346840,1707195038089,-163.20065949,0.00022996,2]
[313346842,1707195038098,-352.00553377,0.00022996,2]
[313346844,1707195038108,-171.8567796,0.00022996,2]
[313346845,1707195038117,-295.97277817,0.00022997,2]
[313346847,1707195038126,-1888.86828909,0.00022997,2]
[313346849,1707195038136,-12008.20447394,0.00022997,2]
[313346851,1707195038145,-1107.38624,0.00022997,2]
[313346854,1707195038156,-378695.65352821,0.00022998,2]
[313346856,1707195038165,-3309.97832316,0.00022998,2]
[313346858,1707195038174,-1065982.53206687,0.00023,2]
[313346860,1707195038186,-19596.04983241,0.00023,2]
[313346862,1707195038199,-361.02888736,0.00023,2]
[313346889,1707195040085,-507.76928861,0.00022998,2]
[313346890,1707195040097,-601.05792827,0.00022998,2]
[313346891,1707195040141,-2201.15110628,0.00022998,2]
[313346892,1707195040150,-7044.15390359,0.00023,2]
[313346893,1707195040196,-1612.60638186,0.00023,2]
[313346894,1707195040207,-541.05532265,0.00023,2]
[313346895,1707195040219,-13877.87839757,0.00023,2]
[313346896,1707195040231,-37892.78513535,0.00023,2]
[313346897,1707195040242,-574.82351416,0.00023,2]
[313346898,1707195040258,-530.83065272,0.00023,2]
[313346899,1707195040307,-13663.45559752,0.00023,2]
[313346900,1707195040383,-188122.62376133,0.00023,2]
[313346901,1707195040516,-322.74619691,0.00023,2]
[313346902,1707195040530,-23706.53013667,0.00023,2]
[313346903,1707195040542,-370.78286728,0.00023,2]
[313346904,1707195041070,-312.14320097,0.00023,2]
[313346905,1707195041082,-1070.276403,0.00023,2]
[313346933,1707195042636,-152.68196233,0.00022775,2]
[313346934,1707195042645,-140.65761192,0.00023,2]
[313346935,1707195042692,-1515.01903168,0.00023,2]
[313346936,1707195042703,-695.21798084,0.00023,2]
[313346937,1707195042749,-28259.57203838,0.00023,2]
[313346938,1707195042760,-673.42520113,0.00023,2]
[313346939,1707195042771,-1449.54671138,0.00023,2]
[313346940,1707195042857,-266.74846887,0.00023,2]
[313346941,1707195042869,-696.05985471,0.00023,2]
[313346946,1707195045597,-3309.97832316,0.00022999,2]
[313346947,1707195045608,-528.88345355,0.00022999,2]
[313346948,1707195045619,-10885.11292009,0.00023,2]
[313346949,1707195045631,-2408.7063211,0.00023,2]
[313346950,1707195045704,-434.58832327,0.00023,2]
[313346951,1707195045761,-1455.27971593,0.00023,2]
[313346952,1707195084264,166.59,0.00022451,2]
[313346953,1707195116622,1000.0,0.00022345,2]
[313346954,1707195174455,153.82,0.00020429,2]
[313346956,1707195249300,1670.0,0.00023,10]
[313346957,1707195275911,163.08,0.00022428,2]
[313346958,1707195286411,176.99,0.00022,2]
[313346959,1707195297993,500.0,0.00022,2]
[313346960,1707195513859,208.0,0.00021941,2]
[313346961,1707195539046,200.0,0.00022083,2]
[313346962,1707195632339,153.82,0.00020108,2]
[313346963,1707195752934,163.08,0.00022248,2]
[313346966,1707195925920,176.99,0.00022,2]
[313346967,1707196000034,237.63381732,0.00022,2]
[313346968,1707196054387,969.58600385,0.00020696,2]
[313346969,1707196064388,154.66,0.00020014,2]
[313346970,1707196070878,173.33,0.00021927,2]
[313346971,1707196129542,840.0,0.00021904,2]
[313346972,1707196196592,163.08,0.0002209,2]
[313346973,1707196196781,163.08,0.00022473,2]
[313346980,1707196231752,-150.0,0.00022514,2]
[313346981,1707196231761,-201.0,0.00022529,2]
[313346982,1707196231770,-330.75108482,0.0002253,2]
[313346983,1707196231809,-200.3382384,0.0002253,2]
[313346984,1707196231818,-273.26549116,0.00022533,2]
[313346985,1707196231830,-304.12042325,0.00022533,2]
[313346986,1707196231839,-461.95887168,0.00022548,2]
[313346987,1707196231855,-334.38002689,0.00022548,2]
[313346988,1707196231865,-353.27,0.00022548,2]
[313346989,1707196231874,-155.94185076,0.0002267,2]
[313346990,1707196231883,-155.94185073,0.00022716,2]
[313346991,1707196231892,-155.94185073,0.00022762,2]
[313346992,1707196231905,-3329.44,0.00022762,2]
[313346993,1707196231914,-886.33,0.00022762,2]
[313346994,1707196231923,-300.0,0.00022769,2]
[313346995,1707196231932,-255.07,0.00022769,2]
[313346996,1707196231942,-18959.9015076,0.0002277,2]
[313346997,1707196231951,-499.99,0.0002277,2]
[313346998,1707196231961,-2161.31,0.0002277,2]
[313346999,1707196231970,-155.94185073,0.00022808,2]
[313347000,1707196231979,-200.0,0.00022816,2]
[313347001,1707196231989,-155.94185073,0.00022854,2]
[313347002,1707196231998,-163.08,0.00022857,2]
[313347003,1707196232007,-7718.29102025,0.00022875,2]
[313347004,1707196232016,-3168.51,0.00022875,2]
[313347005,1707196232025,-154.66,0.00022881,2]
[313347006,1707196232034,-619.09737811,0.00022884,2]
[313347007,1707196232043,-1000.0,0.00022885,2]
[313347008,1707196232052,-1000.0,0.00022885,2]
[313347009,1707196232061,-1000.0,0.00022885,2]
[313347010,1707196232071,-1000.0,0.00022885,2]
[313347011,1707196232080,-1000.0,0.00022885,2]
[313347012,1707196232089,-1000.0,0.00022885,2]
[313347013,1707196232099,-1000.0,0.00022885,2]
[313347014,1707196232108,-1000.0,0.00022885,2]
[313347015,1707196232118,-1000.0,0.00022885,2]
[313347016,1707196232127,-1000.0,0.00022885,2]
[313347017,1707196232137,-1000.0,0.00022885,2]
[313347018,1707196232146,-1000.0,0.00022885,2]
[313347019,1707196232156,-1000.0,0.00022885,2]
[313347020,1707196232165,-1000.0,0.00022885,2]
[313347021,1707196232174,-1000.0,0.00022885,2]
[313347022,1707196232183,-1000.0,0.00022885,2]
[313347023,1707196232192,-1000.0,0.00022885,2]
[313347024,1707196232202,-1000.0,0.00022885,2]
[313347025,1707196232211,-1000.0,0.00022885,2]
[313347026,1707196232221,-1000.0,0.00022885,2]
[313347027,1707196232230,-1000.0,0.00022885,2]
[313347028,1707196232239,-1124.9174,0.00022885,2]
[313347029,1707196232248,-500.0,0.00022885,2]
[313347030,1707196232257,-500.0,0.00022885,2]
[313347031,1707196232266,-500.0,0.00022885,2]
[313347032,1707196232275,-500.0,0.00022885,2]
[313347033,1707196232284,-500.0,0.00022885,2]
[313347034,1707196232293,-500.0,0.00022885,2]
[313347035,1707196232302,-511.128,0.00022885,2]
[313347036,1707196232312,-13160.8527,0.00022898,2]
[313347037,1707196232321,-6873.02326348,0.000229,2]
[313347038,1707196232330,-5000.0,0.000229,2]
[313347039,1707196232340,-1000.0,0.000229,2]
[313347040,1707196232349,-156.58120723,0.000229,2]
[313347041,1707196232359,-155.94185073,0.000229,2]
[313347042,1707196232367,-2500.0,0.000229,2]
[313347043,1707196232377,-470.0502896,0.000229,2]
[313347044,1707196232390,-212.4619975,0.000229,2]
[313347045,1707196232399,-281.95615192,0.000229,2]
[313347046,1707196232409,-254.70399556,0.000229,2]
[313347047,1707196232419,-508.49927955,0.000229,2]
[313347048,1707196232429,-420.65248789,0.00022985,2]
[313347049,1707196232439,-1375.73990957,0.00022996,2]
[313347050,1707196232448,-459.94264742,0.00022996,2]
[313347051,1707196232458,-156.59117653,0.00022996,2]
[313347052,1707196232468,-192.7960185,0.00022996,2]
[313347053,1707196232477,-2000.09999778,0.00022996,2]
[313347054,1707196232486,-157.12380207,0.00022997,2]
[313347055,1707196232495,-4712.30474173,0.00022997,2]
[313347056,1707196232505,-3033.49237002,0.00022998,2]
[313347057,1707196232675,-44945.51787987,0.00022998,2]
[313347058,1707196232689,-15159.33689045,0.00022998,2]
[313347059,1707196232708,-428.50808,0.00022998,2]
[313347060,1707196232727,-279.23454538,0.00022998,2]
[313347061,1707196232739,-2350.0,0.00022998,2]
[313347082,1707196237743,-2039.91657473,0.00022998,2]
[313347089,1707196237795,-777.9536188,0.00022998,2]
[313347102,1707196237906,-279.39887565,0.00022998,2]
[313347104,1707196237920,-342.79972744,0.00022998,2]
[313347106,1707196237931,-377.44548477,0.00022998,2]
[313347111,1707196238015,-2542.53718426,0.00022998,2]
[313347112,1707196238024,-1201.797,0.00022998,2]
[313347113,1707196238033,-421.91780285,0.00022999,2]
[313347114,1707196238043,-205.16335696,0.00022999,2]
[313347115,1707196238052,-1279.21252233,0.00022999,2]
[313347116,1707196238061,-156.43561684,0.00022999,2]
[313347117,1707196238070,-150.01,0.00022999,2]
[313347118,1707196238079,-3309.97832316,0.00022999,2]
[313347119,1707196238088,-21343.22040251,0.00023,2]
[313347120,1707196238099,-8872.81390061,0.00023,2]
[313347121,1707196238110,-1503.88522232,0.00023,2]
[313347122,1707196238122,-12650.1003,0.00023,2]
[313347155,1707196240306,-388.65544086,0.00023,2]
[313347157,1707196240318,-2779.01094341,0.00023,2]
[313347168,1707196240420,-350.18485946,0.00023,2]
[313347192,1707196245906,-555.61689226,0.000229,2]
[313347193,1707196245916,-45.34375382,0.00022999,2]
[313347197,1707196489258,932.58,0.00022477,2]
[313347198,1707196521605,178.61,0.00022358,2]
[313347199,1707196546667,328.0,0.00022404,2]
[313347200,1707196553562,154.66,0.00020486,2]
[313347201,1707196608761,6859.26,0.00027,30]
[313347202,1707196714918,276.72,0.00022329,2]
[313347203,1707196747102,500.0,0.00022371,2]
[313347204,1707196807044,719.76,0.00022362,2]
[313347205,1707196959605,178.61,0.00022389,2]
[313347206,1707196985424,154.66,0.00020529,2]
[313347207,1707197084475,150.0,0.00022,2]
[313347208,1707197119055,737.6,0.00022495,2]
[313347209,1707197279228,168.71,0.00022437,2]
[313347210,1707197344034,215.89,0.00022417,2]
[313347211,1707197413423,170.06,0.00022365,2]
[313347220,1707197431906,-163.42,0.00022658,2]
[313347222,1707197431916,-150.0,0.00022679,2]
[313347224,1707197431925,-142.45090641,0.000227,2]
[313347225,1707197431938,-18.15806141,0.000227,2]
[313347226,1707197431947,-163.9,0.00022798,2]
[313347227,1707197431956,-511.88714417,0.00022799,2]
[313347228,1707197431965,-129.53708547,0.00022799,2]
[313347229,1707197431979,-20.46291453,0.00022799,2]
[313347230,1707197431988,-300.0,0.00022799,2]
[313347231,1707197432000,-64.87032165,0.00022799,2]
[313347232,1707197432012,-657.30967835,0.00022799,2]
[313347233,1707197432022,-736.55,0.00022799,2]